[Event "CZE-ch U10 Open 2023"]
[Site "Teplice"]
[Date "2023.03.17"]
[Round "8.9"]
[White "Vorlik, Jachym"]
[Black "Zelenka, Tomas"]
[Result "0-1"]
[ECO "D00"]
[WhiteElo "1204"]
[BlackElo "1272"]
[Annotator "NA RC COMBH"]
[PlyCount "86"]
[EventDate "2023.03.09"]
[EventType "swiss"]
[EventCountry "CZE"]
[SourceTitle "playchess.com"]
[Source "ChessBase"]
[SourceQuality "1"]
[TimeControl "40/5400+30:1800+30"]

1. d4 {[%emt 0:00:07]} d5 {[%emt 0:00:09]} 2. Bf4 {[%emt 0:00:21]} c5 {[%emt 0:00:10]} 3. c3 {[%emt 0:01:22]} Nc6 {[%emt 0:00:33]} 4. Nf3 {[%emt 0:00:46]} e6 {[%emt 0:00:18]} 5. e3 {[%emt 0:00:52]} Nf6 {[%emt 0:01:22]} 6. Be2 {[%emt 0:02:11]} Bd6 {[%emt 0:00:23]} 7. Bg3 {[%emt 0:03:29]} b6 {[%emt 0:00:57]} 8. O-O {[%emt 0:01:03]} Ng4 {[%emt 0:01:36]} 9. Nbd2 {[%emt 0:05:30]} Bxg3 {[%emt 0:00:43]} 10. hxg3 {[%emt 0:00:27]} O-O {[%emt 0:00:47]} 11. Nh2 {[%emt 0:04:27]} Nxh2 {[%emt 0:02:05]} 12. Kxh2 {[%emt 0:00:24]} e5 {[%emt 0:00:54]} 13. Bb5 {[%emt 0:04:59]} Bb7 {[%emt 0:03:01]} 14. Bxc6 {[%emt 0:02:12]} Bxc6 {[%emt 0:00:35]} 15. dxe5 {[%emt 0:00:59]} d4 {[%emt 0:01:17]} 16. exd4 {[%emt 0:03:06]} cxd4 {[%emt 0:00:12]} 17. Nf3 {[%emt 0:01:54]} dxc3 {[%emt 0:04:03]} 18. bxc3 {[%emt 0:01:13]} Qe8 {[%emt 0:02:18]} 19. Re1 {[%emt 0:01:18]} f6 {[%emt 0:00:50]} 20. exf6 {[%emt 0:02:06]} Qh5+ {[%emt 0:00:14]} 21. Kg1 {[%emt 0:01:16]} Rxf6 {[%emt 0:00:34]} 22. Re3 {[%emt 0:01:52]} Raf8 {[%emt 0:01:10]} 23. Rb1 {[%emt 0:05:10]} Rh6 {[%emt 0:01:52]} 24. Kf1 {[%emt 0:02:57]} Bb5+ {[%emt 0:00:23]} 25. Ke1 {[%emt 0:01:38]} Qh1+ {[%emt 0:00:14]} 26. Kd2 {[%emt 0:00:54]} Rd6+ {[%emt 0:00:16]} 27. Nd4 {[%emt 0:00:47]} Rxf2+ {[%emt 0:00:16]} 28. Kc1 {[%emt 0:00:55]} Rf1 {[%emt 0:00:16]} 29. Kd2 {[%emt 0:05:07]} Rxd1+ {[%emt 0:00:59]} 30. Rxd1 {[%emt 0:00:41]} Qxg2+ {[%emt 0:00:15]} 31. Kc1 {[%emt 0:04:30]} Ba4 {[%emt 0:01:20]} 32. Rd2 {[%emt 0:02:23]} Qg1+ {[%emt 0:00:19]} 33. Kb2 {[%emt 0:02:33]} Qxe3 {[%emt 0:01:38]} 34. Re2 {[%emt 0:02:21]} Qd3 {[%emt 0:01:29]} 35. Rh2 {[%emt 0:01:59]} Qxg3 36. Re2 {[%emt 0:01:07]} Qg5 {[%emt 0:01:49]} 37. Re8+ {[%emt 0:00:52]} Bxe8 {[%emt 0:00:30]} 38. Kb3 {[%emt 0:00:19]} Qc1 {[%emt 0:01:12]} 39. Kc4 {[%emt 0:01:10]} Bf7+ {[%emt 0:00:32]} 40. Kd3 {[%emt 0:00:30]} b5 {[%emt 0:00:54]} 41. a3 {[%emt 0:31:05]} Bc4+ {[%emt 0:30:40]} 42. Ke4 {[%emt 0:00:32]} g5 {[%emt 0:00:22]} 43. Ke5 {[%emt 0:00:15]} Qf4# 0-1

[Event "CZE-ch U10 Open 2023"]
[Site "Teplice"]
[Date "2023.03.17"]
[Round "8.10"]
[White "Bucek, Vit"]
[Black "Koutecky, Vaclav"]
[Result "0-1"]
[ECO "B01"]
[WhiteElo "1198"]
[BlackElo "2060"]
[Annotator "TA"]
[PlyCount "86"]
[EventDate "2023.03.09"]
[EventType "swiss"]
[EventCountry "CZE"]
[SourceTitle "playchess.com"]
[Source "ChessBase"]
[SourceQuality "1"]
[TimeControl "40/5400+30:1800+30"]

{[%evp 11,85,27,76,11,22,0,82,-16,104,40,214,148,318,219,285,279,565,566,553,436,541,363,414,379,453,467,510,365,698,692,860,856,1279,1306,1218,1186,1393,1316,1460,955,934,260,1129,540,454,-22,121,-1188,-1157,-1502,-1502,-2254,-1827,-5121,-5121,-5029,-5029,-1764,-984,-1304,-1263,-5125,-874,-977,-860,-1385,-1224,-1311,-893,-29980,-29977,-29999,-29994,-29995,-29994,-29999]} 1. e4 {[%emt 0:00:03]} d5 {[%emt 0:00:04]} 2. exd5 {[%emt 0:00:10]} Nf6 {[%emt 0:00:05]} 3. d4 {[%emt 0:00:12]} Bg4 {[%emt 0:00:06]} 4. Nf3 {[%emt 0:00:38]} Qxd5 {[%emt 0:03:14]} 5. Be2 {[%emt 0:04:37]} Nc6 {[%emt 0:00:52]} 6. c4 {[%emt 0:17:51]} Qh5 {[%emt 0:06:03]} (6... Qf5 $11 {should be considered.}) 7. Nc3 {[%emt 0:09:37] B01: Scandinavian Defence.} (7. Be3 $16) 7... O-O-O $11 {[%emt 0:09:21][%cal Oc6d4]} 8. Be3 {[%emt 0:03:17]} e6 {[%emt 0:06:14]} (8... e5 $11 9. d5 e4) 9. a3 {[%emt 0:02:18] [#]} (9. h3 $16) 9... Be7 $146 {[%emt 0:19:38]} (9... Nxd4 $11 {remains equal.} 10. Nxd4 (10. Bxd4 c5 $17) 10... c5 11. Bxg4 Nxg4) ({Predecessor:} 9... e5 10. d5 Nd4 11. Nxd4 exd4 12. Bxd4 Bxe2 13. Nxe2 Kb8 14. b4 Bd6 15. Qa4 Rhe8 16. Qxa7+ {1-0 Hajagos,J (1943)-Ferenczi,B (1780) HUN-chT2 Toth 1819 2018 (5.8)}) 10. b4 {[%emt 0:01:50]} ({White should try} 10. h3 $16) 10... a6 $2 {[%emt 0:09:30]} (10... e5 $1 $14 11. d5 e4) 11. Rb1 {[%emt 0:10:24]} Na7 {[%emt 0:07:42]} (11... e5 $16 {is a better defense.}) 12. a4 {[%emt 0:05:29]} Bf5 {[%emt 0:09:34]} 13. Rb2 {[%emt 0:04:49]} b6 $2 {[%emt 0:02:29]} (13... Bg4 14. O-O g5) 14. Ne5 $18 {[%emt 0:01:43]} Qh4 {[%emt 0:05:30]} 15. Nxf7 {[%emt 0:00:26]} Ng4 {[%emt 0:00:51]} 16. Bxg4 {[%emt 0:05:32]} Bxg4 {[%emt 0:00:28]} 17. Qb3 {[%emt 0:01:22]} Rhf8 {[%emt 0:03:04]} 18. Nxd8 {[%emt 0:00:19]} Rxd8 {[%emt 0:00:30]} 19. a5 {[%emt 0:02:42]} bxa5 {[%emt 0:00:44]} (19... b5 20. O-O Bf5 21. cxb5 Nxb5 22. Nxb5 axb5) 20. bxa5 {[%emt 0:00:23]} Kd7 {[%emt 0:00:17]} 21. Qa4+ {[%emt 0:01:09]} Kc8 {[%emt 0:00:26]} 22. O-O {[%emt 0:01:35]} Bd6 {[%emt 0:00:18]} 23. g3 {[%emt 0:02:05]} Qh3 {[%emt 0:00:09]} 24. f4 {[%emt 0:02:40]} (24. Qb3 $2 Bf3 $19) 24... Rf8 {[%emt 0:00:56]} 25. Qc2 {[%emt 0:00:50]} g5 {[%emt 0:00:29]} 26. Qg2 $2 {[%emt 0:01:13]} (26. d5) 26... Qh5 $2 {[%emt 0:00:15]} (26... Qxg2+ 27. Kxg2 Nc6) 27. h3 {[%emt 0:03:27]} (27. Qb7+ $142 Kd7 28. c5 Bxf4 29. Bxf4 gxf4 30. Rb6) 27... Bxh3 {[%emt 0:00:29][%cal Bg4h3,Bh3f1,Bf1c4,Bc4d5][%mdl 32]} 28. Qh2 {[%emt 0:00:16]} (28. Qb7+ $18 Kd7 29. d5 (29. Qxa7 Bxf1 30. c5 Qf3 $11)) 28... Qg4 {[%emt 0:00:39] [#]} (28... gxf4 $1 $11 29. Rbf2 (29. Bxf4 Bxf4 30. gxf4 Nc6 $15) 29... Rf5 30. Bxf4 Bxf1 31. Qxh5 Rxh5 32. Bxd6 Bxc4 33. Rf8+ Kd7) 29. Kh1 $2 {[%emt 0:03:38][%mdl 8192]} Bxf1 $19 {[%emt 0:00:41]} 30. Rf2 {[%emt 0:01:30]} Bxc4 {[%emt 0:00:20] aiming for ...Nb5.} 31. Ne2 {[%emt 0:00:50]} Bd5+ {[%emt 0:00:22]} 32. Kg1 {[%emt 0:00:37]} gxf4 {[%emt 0:00:58]} 33. Bxf4 {[%emt 0:00:21]} Bxf4 {[%emt 0:00:13]} 34. Nxf4 {[%emt 0:00:15]} Qd1+ {[%emt 0:00:23]} 35. Rf1 {[%emt 0:00:30]} Qxd4+ {[%emt 0:00:17]} 36. Rf2 {[%emt 0:00:14]} Qa1+ {[%emt 0:00:11]} 37. Rf1 {[%emt 0:00:32]} Qxa5 {[%emt 0:00:11]} 38. Qh3 {[%emt 0:00:35]} Qc5+ {[%emt 0:00:41]} 39. Rf2 {[%emt 0:00:52]} Qc6 {[%emt 0:00:55] [#] And now ...Qb6 would win.} 40. Rd2 {[%emt 0:00:51]} Qc1+ {[%emt 0:00:21] Black mates.} 41. Kh2 {[%emt 0:30:37]} Qxd2+ {[%emt 0:30:34]} 42. Kg1 {[%emt 0:00:12]} Qe1+ {[%emt 0:00:19]} 43. Kh2 {[%emt 0:00:22]} Qh1# {[%emt 0:00:11] What a bad dream for White.   Weighted Error Value: White=0.68/Black=1.09} 0-1

[Event "CZE-ch U10 Open 2023"]
[Site "Teplice"]
[Date "2023.03.18"]
[Round "9.1"]
[White "Filindash, Nikita"]
[Black "Skoloud, Josef"]
[Result "1-0"]
[ECO "D35"]
[WhiteElo "2021"]
[BlackElo "1090"]
[Annotator "TA"]
[PlyCount "119"]
[EventDate "2023.03.09"]
[EventType "swiss"]
[EventCountry "CZE"]
[SourceTitle "playchess.com"]
[Source "ChessBase"]
[SourceQuality "1"]
[TimeControl "40/5400+30:1800+30"]

{[%evp 12,118,14,17,37,41,36,36,54,-73,107,97,73,-2,6,10,88,89,81,62,207,214,201,210,203,189,188,193,188,141,148,138,200,156,190,102,200,186,195,167,179,91,86,83,89,91,137,125,138,150,156,141,235,237,428,425,416,401,420,398,845,832,817,764,1245,1176,3733,3274,29989,29990,29987,29969,29989,29990,2099,1970,2164,1381,29977,29978,29980,29981,29980,29977,29978,29980,29986,29987,29987,29988,29988,29989,29991,29992,29992,29993,29993,29994,29994,29995,29996,29997,29997,29998,29998,29998,29998,29999,29999]} 1. d4 {[%emt 0:00:02]} d5 {[%emt 0:00:04]} 2. c4 {[%emt 0:00:07]} e6 {[%emt 0:00:07]} 3. Nc3 {[%emt 0:00:12]} Nf6 {[%emt 0:00:16]} 4. cxd5 {[%emt 0:00:06]} exd5 {[%emt 0:00:18]} 5. Bg5 {[%emt 0:00:11]} Be7 {[%emt 0:00:48]} 6. e3 {[%emt 0:00:08]} O-O {[%emt 0:00:14]} 7. Bd3 {[%emt 0:00:11]} Bg4 {[%emt 0:02:23] D35: Queen's Gambit Declined: Exchange Variation.} 8. Qb3 {[%emt 0:00:12][%cal Og5f6]} Nbd7 {[%emt 0:02:31]} 9. h3 {[%emt 0:04:06]} Bh5 {[%emt 0:01:27] [#] White is slightly better.} 10. f4 $146 {[%emt 0:22:54]} (10. g4 $14 {keeps the upper hand.} Bg6 11. Bxg6 hxg6 12. Bf4) ({Predecessor:} 10. Bf4 Nb6 11. a4 a5 12. Nge2 Bxe2 13. Bxe2 Ne4 14. Nxe4 dxe4 15. Qc2 Bb4+ 16. Kf1 {1-0 Meyer,B (1941)-Wollscheid,S (1793) BL2 West 1718 (Women) 2017 (7.4)}) 10... Ne8 $2 {[%emt 0:15:28]} (10... c5 $1 $17 {[%cal Rc5c4] keeps the pressure on. ...c4 would be deadly.} 11. Qc2 cxd4 12. exd4 Qc7) 11. Bxe7 $16 {[%emt 0:04:09]} (11. Qxb7 Bxg5 12. fxg5 Qxg5 $17) 11... Qxe7 {[%emt 0:00:40]} 12. Kd2 (12. Qxd5 $2 {loses.} Qxe3+ 13. Be2 Nef6 $19) (12. Kf2 $16 Nef6 13. g4 (13. Nxd5 Nxd5 14. Qxd5 Nf6 $14)) 12... Qh4 {[%emt 0:06:17]} 13. Qxd5 {[%emt 0:07:54]} (13. Qxb7 $2 {perishes.} Rb8 14. Qxd5 Rxb2+ 15. Kc1 Nef6 $19) 13... Nef6 {[%emt 0:04:33]} (13... Ndf6 $1 $11 14. Qe5 (14. Qxb7 Nd6 $17) 14... Qf2+ 15. Nge2 Bxe2 16. Nxe2 Rd8) 14. Qg5 $36 {[%emt 0:01:01][%mdl 2048] Keeping Black busy.} Qf2+ {[%emt 0:04:28]} 15. Nge2 {[%emt 0:00:25] The board is on fire.} Rfe8 {[%emt 0:13:37]} (15... Bxe2 $14 16. Nxe2 Rfe8) 16. Qg3 $18 {[%emt 0:00:27] Active counter play!} Qxg3 {[%emt 0:01:37]} 17. Nxg3 {[%emt 0:00:02]} Rad8 {[%emt 0:01:06]} 18. Nxh5 {[%emt 0:09:18]} Nxh5 {[%emt 0:00:13]} 19. g4 {[%emt 0:00:08]} Nhf6 {[%emt 0:00:06]} 20. Rhe1 {[%emt 0:09:47]} (20. g5 $18) 20... Nb6 $16 {[%emt 0:05:24]} 21. g5 {[%emt 0:04:40]} Nfd7 {[%emt 0:01:33]} (21... Nfd5 $16 {was necessary.} 22. Nxd5 Nxd5) 22. Kc2 {[%emt 0:03:17]} c5 {[%emt 0:05:03]} 23. Bb5 {[%emt 0:00:44]} ({White should try} 23. d5 $18) 23... Re7 {[%emt 0:05:18]} (23... cxd4 $16 24. exd4 Re6 25. Bxd7 Rxd7) 24. d5 $18 {[%emt 0:03:15]} a6 {[%emt 0:04:22]} 25. Bf1 {[%emt 0:07:07]} Nf8 {[%emt 0:03:06]} 26. e4 {[%emt 0:00:55]} (26. Rad1 $18) 26... Ng6 $16 {[%emt 0:00:48]} 27. f5 {[%emt 0:01:17]} Ne5 {[%emt 0:00:48]} 28. Be2 {[%emt 0:00:11]} Nbd7 {[%emt 0:02:18]} (28... Nc8 $142) 29. b3 {[%emt 0:06:01]} f6 {[%emt 0:01:29] [#]} 30. d6 $1 {[%emt 0:03:46]} Ree8 {[%emt 0:00:42]} 31. Nd5 {[%emt 0:00:23] Nc7 is the strong threat.} fxg5 {[%emt 0:01:29] [#]} (31... Nf7 $16) 32. Nc7 $1 $18 {[%emt 0:00:13]} Nf7 $2 {[%emt 0:01:18]} (32... Rf8 {was called for.} 33. Ne6 Rfe8 34. Nxd8 Rxd8) 33. Nxe8 {[%emt 0:00:35]} Rxe8 {[%emt 0:00:10]} 34. Bc4 {[%emt 0:00:08][%cal Oe4e5] aiming for e5!} Nde5 {[%emt 0:00:36]} 35. Rad1 {[%emt 0:09:22]} Nxc4 $2 {[%emt 0:01:16]} (35... Rd8 36. d7 h5) 36. bxc4 {[%emt 0:00:11][%mdl 4096] Endgame KRR-KRN} Ne5 {[%emt 0:00:51]} 37. Rd5 {[%emt 0:00:21][%cal Od5e5]} Nxc4 {[%emt 0:00:53]} 38. e5 {[%emt 0:00:14][%cal Be4e5,Be5e6][%mdl 32] Threatening mate with d7.} Rd8 {[%emt 0:01:52]} 39. e6 {[%emt 0:00:28][%cal Oe6e7] Intending e7! and mate.} Nxd6 {[%emt 0:01:14] [#]} 40. Rxd6 $1 {[%emt 0:00:30][%cal Rd6d8][%mdl 576] Promotion} Re8 {[%emt 0:00:34]} (40... Ra8 41. Red1) 41. Rd7 {[%emt 0:30:42]} b5 {[%emt 0:30:25]} 42. Ra7 {[%emt 0:00:20]} b4 {[%emt 0:00:20]} 43. Rxa6 {[%emt 0:00:14]} c4 {[%emt 0:00:48]} 44. e7 {[%emt 0:00:36] Threatens to win with Rb6.} b3+ {[%emt 0:00:12]} 45. axb3 {[%emt 0:00:21] White mates.} cxb3+ {[%emt 0:00:06]} 46. Kxb3 {[%emt 0:00:16]} Kf7 {[%emt 0:00:05]} 47. Ra7 {[%emt 0:00:24]} h5 {[%emt 0:00:21]} 48. Kc4 {[%emt 0:00:21]} g4 {[%emt 0:00:17]} 49. hxg4 {[%emt 0:00:59]} hxg4 {[%emt 0:00:06]} 50. Kd5 {[%emt 0:00:30]} g3 {[%emt 0:00:26]} 51. Rg1 {[%emt 0:01:34]} g6 {[%emt 0:00:21]} 52. fxg6+ {[%emt 0:01:02]} Kxg6 {[%emt 0:00:21]} 53. Rxg3+ {[%emt 0:00:02]} Kf6 {[%emt 0:00:20]} 54. Rf3+ {[%emt 0:00:12]} Kg6 {[%emt 0:00:26]} 55. Rf8 {[%emt 0:00:14]} Kh6 {[%emt 0:00:34]} 56. Rxe8 {[%emt 0:00:17]} Kh5 {[%emt 0:00:23]} 57. Rg8 {[%emt 0:00:14]} Kh6 {[%emt 0:00:27]} 58. Ra1 {[%emt 0:00:10][%cal Ra1h1]} Kh7 {[%emt 0:00:17]} 59. Rg2 {[%emt 0:00:11][%cal Ra1h1]} Kh8 {[%emt 0:00:13]} 60. Rh1# {[%emt 0:00:08] Weighted Error Value: White=0.18 (very precise) /Black=0.58} 1-0

[Event "CZE-ch U10 Open 2023"]
[Site "Teplice"]
[Date "2023.03.18"]
[Round "9.1"]
[White "Fizer, Marek"]
[Black "Vilimek, Vit"]
[Result "*"]
[ECO "D31"]
[WhiteElo "1929"]
[BlackElo "2018"]
[Annotator "TA"]
[PlyCount "31"]
[EventDate "2023.03.09"]
[EventType "swiss"]
[EventCountry "CZE"]
[SourceTitle "playchess.com"]
[Source "ChessBase"]
[SourceQuality "1"]
[TimeControl "40/5400+30:1800+30"]

{[%evp 12,18,17,11,39,35,30,33,48]} 1. d4 {[%emt 0:00:02]} d5 {[%emt 0:00:04]} 2. c4 {[%emt 0:00:07]} e6 {[%emt 0:00:07]} 3. Nc3 {[%emt 0:00:12]} Nf6 {[%emt 0:00:16]} 4. cxd5 {[%emt 0:00:06]} exd5 {[%emt 0:00:18]} 5. Bg5 {[%emt 0:00:11]} Be7 {[%emt 0:00:48]} 6. e3 {[%emt 0:00:08]} O-O {[%emt 0:00:14]} 7. Bd3 {[%emt 0:00:11]} Bg4 {[%emt 0:02:23] D35: Queen's Gambit Declined: Exchange Variation.} 8. Qb3 {[%emt 0:00:12][%cal Og5f6]} Nbd7 {[%emt 0:02:31]} 9. h3 {[%emt 0:04:06]} Bh5 {[%emt 0:01:27] [#]   Weighted Error Value: White=0.00 (flawless) /Black=0.13 (very precise)} {Predecessor:} 10. Bf4 $146 Nb6 11. a4 a5 12. Nge2 Bxe2 13. Bxe2 Ne4 14. Nxe4 dxe4 15. Qc2 Bb4+ 16. Kf1 {1-0 Meyer,B (1941)-Wollscheid,S (1793) BL2 West 1718 (Women) 2017 (7.4)} *

[Event "CZE-ch U10 Open 2023"]
[Site "Teplice"]
[Date "2023.03.18"]
[Round "9.2"]
[White "Mametev, Artem"]
[Black "Paseka, Matyas"]
[Result "*"]
[WhiteElo "2074"]
[BlackElo "2082"]
[Annotator "TA"]
[PlyCount "26"]
[EventDate "2023.03.09"]
[EventType "swiss"]
[EventCountry "CZE"]
[SourceTitle "playchess.com"]
[Source "ChessBase"]
[SourceQuality "1"]
[TimeControl "40/5400+30:1800+30"]

{[%evp 9,26,31,66,57,65,61,72,64,58,42,43,44,24,0,62,26,106,41,112]} 1. e4 {[%emt 0:00:15]} g6 {[%emt 0:00:04]} 2. d4 {[%emt 0:00:12]} Bg7 {[%emt 0:00:05]} 3. c4 {[%emt 0:00:17]} d6 {[%emt 0:00:17]} 4. f4 {[%emt 0:00:23]} a6 {[%emt 0:00:26]} 5. Nf3 {[%emt 0:00:15]} Bg4 {[%emt 0:00:18]} 6. Be2 {[%emt 0:00:20] [#] A41: 1 d4 d6: Tartakower System and Modern Defence.} Nd7 $146 {[%emt 0:01:51]} ({Predecessor:} 6... c5 7. d5 Nd7 8. O-O Qc7 9. Nc3 Ngf6 10. Be3 O-O 11. h3 Bxf3 12. Bxf3 e6 {1-0 Mendez,D-Escamilla,V ESA-ch San Salvador 2003 (6)}) 7. O-O {[%emt 0:00:21]} e6 {[%emt 0:04:32]} 8. Be3 {[%emt 0:00:38] White is better.} Ne7 {[%emt 0:01:13]} 9. Nbd2 {[%emt 0:01:24]} O-O {[%emt 0:01:52]} 10. h3 {[%emt 0:01:59]} Bxf3 {[%emt 0:00:09]} 11. Bxf3 {[%emt 0:00:19]} f5 {[%emt 0:01:31]} (11... c5 $11) 12. e5 {[%emt 0:03:24]} Rb8 {[%emt 0:02:37]} (12... dxe5 $1 $11 {remains equal.} 13. dxe5 (13. fxe5 c5 $14) 13... g5) 13. Qb3 {[%emt 0:01:12] White is more active.} (13. Nb3 $16) 13... b6 {[%emt 0:11:12] Weighted Error Value: White=0.16 (very precise) /Black=0.32} (13... dxe5 $14 14. dxe5 (14. fxe5 c5 $11) 14... g5) *

[Event "CZE-ch U10 Open 2023"]
[Site "Teplice"]
[Date "2023.03.18"]
[Round "9.2"]
[White "Lutskiy, Mikhail"]
[Black "Kolar, Edvard"]
[Result "1-0"]
[ECO "B06"]
[WhiteElo "1150"]
[BlackElo "1518"]
[Annotator "NA RC COMBH"]
[PlyCount "62"]
[EventDate "2023.03.09"]
[EventType "swiss"]
[EventCountry "CZE"]
[SourceTitle "playchess.com"]
[Source "ChessBase"]
[SourceQuality "1"]
[TimeControl "40/5400+30:1800+30"]

1. e4 {[%emt 0:00:15]} g6 {[%emt 0:00:04]} 2. d4 {[%emt 0:00:12]} Bg7 {[%emt 0:00:05]} 3. c4 {[%emt 0:00:17]} d6 {[%emt 0:00:17]} 4. f4 {[%emt 0:00:23]} a6 {[%emt 0:00:26]} 5. Nf3 $14 {[%emt 0:00:15]} Bg4 {[%emt 0:00:18]} 6. Be2 {[%emt 0:00:20]} Nd7 {[%emt 0:01:51]} 7. O-O {[%emt 0:00:21]} e6 {[%emt 0:04:32]} 8. Be3 {[%emt 0:00:38]} Ne7 {[%emt 0:01:13]} 9. Nbd2 O-O {[%emt 0:01:52]} 10. h3 {[%emt 0:01:59]} Bxf3 {[%emt 0:00:09]} 11. Bxf3 {[%emt 0:00:19]} f5 {[%emt 0:01:31]} 12. e5 {[%emt 0:03:24]} Rb8 {[%emt 0:02:37]} 13. Qb3 {[%emt 0:01:12]} b6 {[%emt 0:11:12]} 14. exd6 {[%emt 0:00:33]} cxd6 {[%emt 0:00:22]} 15. Qa3 {[%emt 0:00:19]} Qc7 {[%emt 0:06:45]} 16. Qxa6 {[%emt 0:00:29]} e5 {[%emt 0:06:27]} 17. dxe5 {[%emt 0:02:00]} dxe5 {[%emt 0:02:15]} 18. fxe5 {[%emt 0:02:04]} Bxe5 {[%emt 0:05:59]} 19. Rab1 {[%emt 0:01:22]} Nf6 {[%emt 0:13:26]} 20. Rfc1 {[%emt 0:04:00]} Bd6 {[%emt 0:06:15]} 21. b4 {[%emt 0:01:53]} Nd7 {[%emt 0:08:34]} 22. c5 {[%emt 0:02:34]} bxc5 {[%emt 0:01:32]} 23. bxc5 {[%emt 0:00:13]} Rxb1 {[%emt 0:00:51]} 24. Nxb1 {[%emt 0:00:09]} Nxc5 {[%emt 0:01:33]} 25. Qc4+ {[%emt 0:00:18]} Kh8 {[%emt 0:01:08]} 26. Bxc5 {[%emt 0:00:08]} Bxc5+ {[%emt 0:00:56]} 27. Qxc5 {[%emt 0:00:10]} Qf4 {[%emt 0:00:12]} 28. Rc4 {[%emt 0:01:05]} Qg5 {[%emt 0:00:05]} 29. Qe5+ {[%emt 0:00:47]} Kg8 {[%emt 0:00:02]} 30. Rc7 {[%emt 0:01:02]} Rb8 {[%emt 0:00:42]} 31. Bd5+ {[%emt 0:01:03]} Nxd5 {[%emt 0:00:11]} 1-0

[Event "CZE-ch U10 Open 2023"]
[Site "Teplice"]
[Date "2023.03.18"]
[Round "9.3"]
[White "Janous, Marek"]
[Black "Prazak, Daniel"]
[Result "*"]
[WhiteElo "2124"]
[BlackElo "2064"]
[Annotator "TA"]
[PlyCount "32"]
[EventDate "2023.03.09"]
[EventType "swiss"]
[EventCountry "CZE"]
[SourceTitle "playchess.com"]
[Source "ChessBase"]
[SourceQuality "1"]
[TimeControl "40/5400+30:1800+30"]

{[%evp 11,15,13,25,15,22,20]} 1. Nf3 {[%emt 0:01:21]} d5 {[%emt 0:00:36]} 2. e3 {[%emt 0:00:44]} Nf6 {[%emt 0:01:08]} 3. c4 {[%emt 0:01:17]} e6 {[%emt 0:02:26]} 4. Nc3 {[%emt 0:01:16]} b6 {[%emt 0:04:36]} 5. cxd5 {[%emt 0:06:19]} Nxd5 {[%emt 0:00:59]} 6. d4 {[%emt 0:00:51]} Bb7 {[%emt 0:01:53]} 7. Bd3 {[%emt 0:01:01] E14: Queen's Indian: Classical Variation (4 e3).} Be7 {[%emt 0:07:57]} 8. O-O {[%emt 0:05:50] [#] A rather calm draw.} {Predecessor:} O-O $146 9. Nxd5 Bxd5 10. Qc2 h6 11. e4 Bb7 12. Rd1 Nd7 13. Bf4 c5 14. d5 exd5 15. exd5 Bf6 16. Rd2 Re8 {1-0 Hou,Y (2686)-Sanal,V (2487) Nakhchivan op 2015 (7)} *